[Event "*** Titled Tuesday Blitz"]
[Site "Chess.com"]
[Date "2019.02.05"]
[Round "2"]
[White "x-3738459472"]
[Black "regular_legs"]
[Result "1/2-1/2"]
[WhiteElo "2500"]
[BlackElo "2483"]
[TimeControl "180+2"]
[EndTime "13:23:33 PST"]
[Termination "Game drawn by agreement"]

1. d4 {[%clk 0:03:01.9]} 1... Nf6 {[%clk 0:03:00.1]} 2. Bf4 {[%clk 0:03:01.8]}
2... d5 {[%clk 0:02:58.3]} 3. e3 {[%clk 0:03:02.4]} 3... e6 {[%clk 0:02:57.4]}
4. Bd3 {[%clk 0:03:02.3]} 4... Bd6 {[%clk 0:02:58.8]} 5. Bg3 {[%clk 0:03:03.3]}
5... O-O {[%clk 0:02:57.9]} 6. Nf3 {[%clk 0:03:02.6]} 6... b6 {[%clk 0:02:59.3]}
7. Nbd2 {[%clk 0:02:58.9]} 7... c5 {[%clk 0:02:57.4]} 8. c3 {[%clk 0:02:59.1]}
8... Ba6 {[%clk 0:02:58]} 9. Bxa6 {[%clk 0:02:54.9]} 9... Nxa6 {[%clk
0:02:59.9]} 10. Ne5 {[%clk 0:02:55.5]} 10... Nb8 {[%clk 0:02:52.3]} 11. Bh4
{[%clk 0:02:52.8]} 11... Be7 {[%clk 0:02:45.4]} 12. O-O {[%clk 0:02:51.2]} 12...
Nfd7 {[%clk 0:02:28.7]} 13. Bxe7 {[%clk 0:02:44.3]} 13... Qxe7 {[%clk
0:02:30.6]} 14. Nxd7 {[%clk 0:02:37.7]} 14... Nxd7 {[%clk 0:02:25.1]} 15. Nf3
{[%clk 0:02:33.4]} 15... Rfc8 {[%clk 0:02:16.2]} 16. Re1 {[%clk 0:02:27.4]}
16... cxd4 {[%clk 0:02:10.8]} 17. Nxd4 {[%clk 0:02:27.5]} 17... Nf6 {[%clk
0:02:06.6]} 18. a4 {[%clk 0:02:23.8]} 18... a6 {[%clk 0:01:57.9]} 19. Qb3 {[%clk
0:02:23.6]} 19... Qc5 {[%clk 0:01:57.6]} 20. Nf3 {[%clk 0:02:21.3]} 20... Rab8
{[%clk 0:01:56.9]} 21. Red1 {[%clk 0:02:16.8]} 21... Ne4 {[%clk 0:01:56.3]} 22.
Ne5 {[%clk 0:02:07.4]} 22... Qc7 {[%clk 0:01:54.1]} 23. Nd3 {[%clk 0:02:05.6]}
23... h6 {[%clk 0:01:54.3]} 24. Rac1 {[%clk 0:01:59.1]} 24... Nd6 {[%clk
0:01:52.4]} 25. Nb4 {[%clk 0:01:57.4]} 25... Qb7 {[%clk 0:01:49.9]} 26. Nc2
{[%clk 0:01:52.6]} 26... Nc4 {[%clk 0:01:49.7]} 27. Na3 {[%clk 0:01:53.7]} 27...
Nd6 {[%clk 0:01:49.3]} 28. h3 {[%clk 0:01:43.7]} 28... b5 {[%clk 0:01:49.5]} 29.
axb5 {[%clk 0:01:43.5]} 29... axb5 {[%clk 0:01:50.4]} 30. Qb4 {[%clk 0:01:44.7]}
30... Nc4 {[%clk 0:01:43.1]} 31. Nc2 {[%clk 0:01:40]} 31... Ra8 {[%clk
0:01:38.2]} 32. Nd4 {[%clk 0:01:40.6]} 32... Rcb8 {[%clk 0:01:31.1]} 33. Ra1
{[%clk 0:01:39]} 33... Ne5 {[%clk 0:01:21.9]} 34. Nb3 {[%clk 0:01:20.6]} 34...
Nc6 {[%clk 0:01:20.3]} 35. Qf4 {[%clk 0:01:15.8]} 35... Ra4 {[%clk 0:01:13.2]}
36. Qd6 {[%clk 0:01:12.5]} 36... Rd8 {[%clk 0:01:00.9]} 37. Qg3 {[%clk
0:01:05.7]} 37... Qb6 {[%clk 0:00:59.5]} 38. Rab1 {[%clk 0:00:55.8]} 38... Qb8
{[%clk 0:00:59.1]} 39. Qxb8 {[%clk 0:00:51.5]} 39... Rxb8 {[%clk 0:01:01]} 40.
Nc5 {[%clk 0:00:52.5]} 40... Ra2 {[%clk 0:01:00]} 41. e4 {[%clk 0:00:49.6]}
41... dxe4 {[%clk 0:01:00.4]} 42. Nxe4 {[%clk 0:00:51.5]} 42... b4 {[%clk
0:01:00.8]} 43. cxb4 {[%clk 0:00:51]} 43... Rxb4 {[%clk 0:01:01.7]} 44. Nc3
{[%clk 0:00:50.4]} 44... Raxb2 {[%clk 0:01:02.5]} 45. Rxb2 {[%clk 0:00:49.6]}
45... Rxb2 {[%clk 0:01:04.4]} 46. Rd6 {[%clk 0:00:51]} 46... Ne5 {[%clk
0:01:05.1]} 47. Rd8+ {[%clk 0:00:43.8]} 47... Kh7 {[%clk 0:01:05.7]} 48. Ne4
{[%clk 0:00:42.8]} 48... g6 {[%clk 0:01:04.2]} 49. Nf6+ {[%clk 0:00:42.4]} 49...
Kg7 {[%clk 0:01:05.5]} 50. Ne8+ {[%clk 0:00:43.6]} 50... Kf8 {[%clk 0:01:06.5]}
51. Ra8 {[%clk 0:00:39.3]} 51... g5 {[%clk 0:01:01.5]} 52. Nd6+ {[%clk
0:00:36.8]} 52... Kg7 {[%clk 0:01:02.2]} 53. Ne4 {[%clk 0:00:33.4]} 53... Re2
{[%clk 0:00:59]} 54. f3 {[%clk 0:00:34.1]} 54... Ng6 {[%clk 0:00:59]} 55. Ng3
{[%clk 0:00:33.5]} 55... Rb2 {[%clk 0:00:47.6]} 56. Nh5+ {[%clk 0:00:34.4]}
56... Kh7 {[%clk 0:00:48.6]} 57. Nf6+ {[%clk 0:00:35.6]} 57... Kg7 {[%clk
0:00:49.7]} 58. Nh5+ {[%clk 0:00:36.7]} 58... Kh7 {[%clk 0:00:50.8]} 59. Nf6+
{[%clk 0:00:37.8]} 1/2-1/2

[Event "*** Titled Tuesday Blitz"]
[Site "Chess.com"]
[Date "2019.02.05"]
[Round "2"]
[White "EugeneRougon"]
[Black "HanSchut"]
[Result "1-0"]
[WhiteElo "2574"]
[BlackElo "2296"]
[TimeControl "180+2"]
[EndTime "13:23:39 PST"]
[Termination "EugeneRougon won by resignation"]

1. e4 {[%clk 0:03:01.9]} 1... c5 {[%clk 0:03:00.1]} 2. Nf3 {[%clk 0:03:02.7]}
2... d6 {[%clk 0:03:01.6]} 3. d4 {[%clk 0:03:03.5]} 3... cxd4 {[%clk 0:03:03.5]}
4. Nxd4 {[%clk 0:03:05.3]} 4... Nf6 {[%clk 0:03:05]} 5. Nc3 {[%clk 0:03:06]}
5... a6 {[%clk 0:03:06.4]} 6. Be3 {[%clk 0:02:52]} 6... e5 {[%clk 0:03:06.5]} 7.
Nf3 {[%clk 0:02:52.6]} 7... Qc7 {[%clk 0:02:50.2]} 8. a4 {[%clk 0:02:50.5]} 8...
Be6 {[%clk 0:02:42.9]} 9. Be2 {[%clk 0:02:49.4]} 9... Nbd7 {[%clk 0:02:39.2]}
10. O-O {[%clk 0:02:50]} 10... Be7 {[%clk 0:02:39.6]} 11. a5 {[%clk 0:02:48.9]}
11... Qc6 {[%clk 0:02:26.7]} 12. Ng5 {[%clk 0:02:22.7]} 12... Bc4 {[%clk
0:02:19.2]} 13. Ra4 {[%clk 0:02:10.2]} 13... Bxe2 {[%clk 0:02:17.7]} 14. Qxe2
{[%clk 0:02:11.1]} 14... Rc8 {[%clk 0:02:18.9]} 15. Rd1 {[%clk 0:01:49.8]} 15...
h6 {[%clk 0:02:01.3]} 16. Nh3 {[%clk 0:01:48.6]} 16... O-O {[%clk 0:01:42.6]}
17. f3 {[%clk 0:01:48.8]} 17... Rfd8 {[%clk 0:01:14.3]} 18. Nf2 {[%clk
0:01:45.4]} 18... Nc5 {[%clk 0:00:57.2]} 19. Rc4 {[%clk 0:01:28.3]} 19... Qe8
{[%clk 0:00:52.4]} 20. Nd5 {[%clk 0:00:49.5]} 20... Nxd5 {[%clk 0:00:45]} 21.
Rxd5 {[%clk 0:00:51.4]} 21... Ne6 {[%clk 0:00:35]} 22. Rxc8 {[%clk 0:00:51.4]}
22... Rxc8 {[%clk 0:00:34.9]} 23. c4 {[%clk 0:00:45.6]} 23... Qa4 {[%clk
0:00:33.3]} 24. c5 {[%clk 0:00:42.9]} 24... Nxc5 {[%clk 0:00:25.4]} 25. Bxc5
{[%clk 0:00:41.6]} 25... Rxc5 {[%clk 0:00:23.3]} 26. Rxc5 {[%clk 0:00:35.2]}
26... dxc5 {[%clk 0:00:25.2]} 27. Ng4 {[%clk 0:00:23.1]} 27... f6 {[%clk
0:00:23]} 28. Ne3 {[%clk 0:00:22.8]} 28... Qd4 {[%clk 0:00:20.4]} 29. Kf1 {[%clk
0:00:22.6]} 29... c4 {[%clk 0:00:19.7]} 30. Qxc4+ {[%clk 0:00:22.8]} 30... Qxc4+
{[%clk 0:00:16.8]} 31. Nxc4 {[%clk 0:00:24.7]} 31... Kf7 {[%clk 0:00:17.8]} 32.
Ke2 {[%clk 0:00:25]} 32... Bb4 {[%clk 0:00:15.8]} 33. Kd3 {[%clk 0:00:25.2]}
33... Ke6 {[%clk 0:00:16.9]} 34. Kc2 {[%clk 0:00:23.5]} 34... g6 {[%clk
0:00:16.6]} 35. Kb3 {[%clk 0:00:24.3]} 35... Be1 {[%clk 0:00:16.8]} 36. Ka4
{[%clk 0:00:24.4]} 36... f5 {[%clk 0:00:16.6]} 37. b4 {[%clk 0:00:24.2]} 37...
h5 {[%clk 0:00:16]} 38. b5 {[%clk 0:00:23.7]} 38... h4 {[%clk 0:00:13.5]} 39.
Ne3 {[%clk 0:00:19.4]} 39... Bf2 {[%clk 0:00:06.9]} 40. Nd5 {[%clk 0:00:18.9]}
40... h3 {[%clk 0:00:06.3]} 41. gxh3 {[%clk 0:00:19.5]} 41... Bg1 {[%clk
0:00:07.8]} 42. bxa6 {[%clk 0:00:19.9]} 42... bxa6 {[%clk 0:00:08.6]} 43. Nc7+
{[%clk 0:00:21]} 43... Kf6 {[%clk 0:00:08.8]} 44. Nxa6 {[%clk 0:00:22.9]} 44...
Kg5 {[%clk 0:00:09.6]} 45. Kb5 {[%clk 0:00:23.2]} 45... Kf4 {[%clk 0:00:10.6]}
46. Nc5 {[%clk 0:00:22.6]} 46... Kxf3 {[%clk 0:00:11]} 47. a6 {[%clk 0:00:23.5]}
47... fxe4 {[%clk 0:00:08.9]} 48. a7 {[%clk 0:00:23.5]} 48... e3 {[%clk
0:00:10.8]} 49. a8=Q+ {[%clk 0:00:24.6]} 49... Kf2 {[%clk 0:00:10.4]} 50. Qe4
{[%clk 0:00:21.7]} 1-0

[Event "*** Titled Tuesday Blitz"]
[Site "Chess.com"]
[Date "2019.02.05"]
[Round "2"]
[White "yuki_chess123"]
[Black "HrvojeZagreb"]
[Result "1-0"]
[WhiteElo "1978"]
[BlackElo "2116"]
[TimeControl "180+2"]
[EndTime "13:23:40 PST"]
[Termination "yuki_chess123 won by resignation"]

1. e4 {[%clk 0:03:01.9]} 1... e6 {[%clk 0:03:00.5]} 2. d3 {[%clk 0:03:02.7]}
2... d5 {[%clk 0:03:00.4]} 3. Nd2 {[%clk 0:03:03.5]} 3... Nf6 {[%clk 0:03:01.5]}
4. Ngf3 {[%clk 0:03:04.2]} 4... c5 {[%clk 0:03:02.5]} 5. g3 {[%clk 0:03:04.6]}
5... Be7 {[%clk 0:03:03.6]} 6. Bg2 {[%clk 0:03:05.7]} 6... b5 {[%clk 0:03:04.8]}
7. O-O {[%clk 0:03:06.5]} 7... a5 {[%clk 0:03:04.2]} 8. Re1 {[%clk 0:03:07.6]}
8... Bb7 {[%clk 0:03:04.8]} 9. exd5 {[%clk 0:03:08.8]} 9... Bxd5 {[%clk
0:03:03.4]} 10. c4 {[%clk 0:03:07.4]} 10... Bb7 {[%clk 0:02:56.5]} 11. Ne5
{[%clk 0:02:55.1]} 11... Bxg2 {[%clk 0:02:50.7]} 12. Kxg2 {[%clk 0:02:55.7]}
12... b4 {[%clk 0:02:46.8]} 13. Qf3 {[%clk 0:02:54.2]} 13... Ra7 {[%clk
0:02:39.7]} 14. Ne4 {[%clk 0:02:49.4]} 14... O-O {[%clk 0:01:55]} 15. Bf4 {[%clk
0:01:43.7]} 15... Nxe4 {[%clk 0:01:45.9]} 16. dxe4 {[%clk 0:01:40.6]} 16... Bf6
{[%clk 0:01:43.6]} 17. Rad1 {[%clk 0:01:40.2]} 17... Qc8 {[%clk 0:01:44.8]} 18.
b3 {[%clk 0:01:36.8]} 18... Bxe5 {[%clk 0:01:45.6]} 19. Bxe5 {[%clk 0:01:37.2]}
19... f6 {[%clk 0:01:40.1]} 20. Bd6 {[%clk 0:01:38]} 20... Rd8 {[%clk
0:01:39.6]} 21. e5 {[%clk 0:01:38.2]} 21... Rad7 {[%clk 0:01:33.9]} 22. Qg4
{[%clk 0:01:18.2]} 22... fxe5 {[%clk 0:01:02.3]} 23. Qxe6+ {[%clk 0:01:18.2]}
23... Rf7 {[%clk 0:01:03.4]} 24. Qxc8 {[%clk 0:01:09.3]} 24... Rxc8 {[%clk
0:01:05.3]} 25. Bxb8 {[%clk 0:01:06.2]} 25... Rxb8 {[%clk 0:01:06.1]} 26. Rxe5
{[%clk 0:01:07.7]} 26... Rc7 {[%clk 0:01:03.6]} 27. Rdd5 {[%clk 0:01:06.9]}
27... Rbc8 {[%clk 0:01:04.8]} 28. f4 {[%clk 0:01:07.3]} 28... g6 {[%clk
0:01:05.8]} 29. Kf3 {[%clk 0:01:07.7]} 29... Kf7 {[%clk 0:01:07.1]} 30. g4
{[%clk 0:01:07.6]} 30... a4 {[%clk 0:01:03.3]} 31. h4 {[%clk 0:00:59.4]} 31...
h6 {[%clk 0:01:02.6]} 32. h5 {[%clk 0:00:54.5]} 32... gxh5 {[%clk 0:01:03.2]}
33. Rxh5 {[%clk 0:00:55.4]} 33... Kg7 {[%clk 0:01:04.4]} 34. Rd6 {[%clk
0:00:51.3]} 34... axb3 {[%clk 0:01:03.8]} 35. axb3 {[%clk 0:00:50.3]} 35... Rh8
{[%clk 0:00:51.3]} 36. f5 {[%clk 0:00:45]} 36... Ra7 {[%clk 0:00:40]} 37. Kf4
{[%clk 0:00:28.5]} 37... Ra3 {[%clk 0:00:39.6]} 38. Rd3 {[%clk 0:00:29.1]} 38...
Rf8 {[%clk 0:00:37.9]} 39. Ke5 {[%clk 0:00:28.4]} 39... Ra6 {[%clk 0:00:32.3]}
40. Rd7+ {[%clk 0:00:25.1]} 40... Rf7 {[%clk 0:00:28]} 41. Rxf7+ {[%clk
0:00:24.9]} 41... Kxf7 {[%clk 0:00:29.9]} 42. Kd5 {[%clk 0:00:25.3]} 42... Ra3
{[%clk 0:00:28.1]} 43. Rh3 {[%clk 0:00:25.2]} 43... Kg7 {[%clk 0:00:28.1]} 44.
Kxc5 {[%clk 0:00:26]} 44... h5 {[%clk 0:00:29.2]} 45. gxh5 {[%clk 0:00:26.3]}
45... Kf6 {[%clk 0:00:30.6]} 46. h6 {[%clk 0:00:27.1]} 46... Ra8 {[%clk
0:00:31.1]} 47. h7 {[%clk 0:00:27.9]} 47... Rh8 {[%clk 0:00:31.5]} 48. Kxb4
{[%clk 0:00:28]} 48... Kxf5 {[%clk 0:00:32.8]} 49. c5 {[%clk 0:00:27.6]} 49...
Kg6 {[%clk 0:00:31.9]} 50. Kc4 {[%clk 0:00:26.9]} 50... Kg7 {[%clk 0:00:32.6]}
51. b4 {[%clk 0:00:27.6]} 51... Rf8 {[%clk 0:00:29.9]} 52. h8=Q+ {[%clk
0:00:24.2]} 1-0

[Event "*** Titled Tuesday Blitz"]
[Site "Chess.com"]
[Date "2019.02.05"]
[Round "2"]
[White "Bayernbk"]
[Black "ENEASZ"]
[Result "1-0"]
[WhiteElo "2424"]
[BlackElo "2378"]
[TimeControl "180+2"]
[EndTime "13:23:40 PST"]
[Termination "Bayernbk won by resignation"]

1. e4 {[%clk 0:02:54.6]} 1... d6 {[%clk 0:03:01.9]} 2. d4 {[%clk 0:02:55.6]}
2... Nf6 {[%clk 0:03:01.8]} 3. Bd3 {[%clk 0:02:56.5]} 3... e5 {[%clk 0:03:03.2]}
4. c3 {[%clk 0:02:57.9]} 4... Nc6 {[%clk 0:03:04.3]} 5. Nf3 {[%clk 0:02:58.9]}
5... Bg4 {[%clk 0:03:05.1]} 6. dxe5 {[%clk 0:02:58]} 6... Nxe5 {[%clk
0:03:05.3]} 7. Be2 {[%clk 0:02:59.4]} 7... Nxf3+ {[%clk 0:02:25.7]} 8. Bxf3
{[%clk 0:02:59.1]} 8... Bxf3 {[%clk 0:02:25.5]} 9. Qxf3 {[%clk 0:03:00.8]} 9...
Be7 {[%clk 0:02:27.4]} 10. O-O {[%clk 0:03:01.9]} 10... O-O {[%clk 0:02:28.9]}
11. Nd2 {[%clk 0:03:02.4]} 11... Re8 {[%clk 0:02:30.1]} 12. Re1 {[%clk
0:03:03.5]} 12... c6 {[%clk 0:02:29.7]} 13. Nc4 {[%clk 0:03:00.2]} 13... b5
{[%clk 0:02:25.7]} 14. Ne3 {[%clk 0:02:56.3]} 14... Bf8 {[%clk 0:02:26.7]} 15.
Ng4 {[%clk 0:02:53.1]} 15... Nxg4 {[%clk 0:02:27.8]} 16. Qxg4 {[%clk 0:02:54.7]}
16... Qc8 {[%clk 0:02:29.5]} 17. Qxc8 {[%clk 0:02:53.8]} 17... Raxc8 {[%clk
0:02:31.4]} 18. Bf4 {[%clk 0:02:54.6]} 18... f6 {[%clk 0:02:29.7]} 19. Rad1
{[%clk 0:02:54.4]} 19... Re6 {[%clk 0:02:31]} 20. f3 {[%clk 0:02:54.6]} 20...
Kf7 {[%clk 0:02:32.3]} 21. Kf1 {[%clk 0:02:53.7]} 21... g5 {[%clk 0:02:33.5]}
22. Be3 {[%clk 0:02:52.1]} 22... h5 {[%clk 0:02:35.1]} 23. Rd3 {[%clk
0:02:43.8]} 23... a5 {[%clk 0:02:34.8]} 24. Red1 {[%clk 0:02:44.8]} 24... a4
{[%clk 0:02:36.1]} 25. b3 {[%clk 0:02:41.4]} 25... axb3 {[%clk 0:02:35.2]} 26.
axb3 {[%clk 0:02:42.8]} 26... Ra8 {[%clk 0:02:36.9]} 27. c4 {[%clk 0:02:40.4]}
27... bxc4 {[%clk 0:02:20]} 28. bxc4 {[%clk 0:02:40.1]} 28... c5 {[%clk
0:02:20.8]} 29. h3 {[%clk 0:02:04.8]} 29... Ra4 {[%clk 0:02:19.7]} 30. Rc1
{[%clk 0:01:59.5]} 30... h4 {[%clk 0:02:16.2]} 31. Ke2 {[%clk 0:01:50.1]} 31...
Re7 {[%clk 0:02:16.6]} 32. Rb3 {[%clk 0:01:47.6]} 32... Ra2+ {[%clk 0:02:14.4]}
33. Kf1 {[%clk 0:01:48.7]} 33... Rea7 {[%clk 0:02:14.4]} 34. Rbc3 {[%clk
0:01:42.7]} 34... Rb2 {[%clk 0:02:06]} 35. R3c2 {[%clk 0:01:40.6]} 35... Rb3
{[%clk 0:02:00.7]} 36. Rc3 {[%clk 0:01:41.8]} 36... Rb4 {[%clk 0:01:53.3]} 37.
Bf2 {[%clk 0:01:39.3]} 37... Ra2 {[%clk 0:01:50]} 38. R3c2 {[%clk 0:01:39.1]}
38... Ra3 {[%clk 0:01:49.2]} 39. Rc3 {[%clk 0:01:38.6]} 39... Ra2 {[%clk
0:01:50.7]} 40. R3c2 {[%clk 0:01:39.8]} 40... Raa4 {[%clk 0:01:51.9]} 41. Be1
{[%clk 0:01:37.2]} 41... Rb7 {[%clk 0:01:50.4]} 42. Rd1 {[%clk 0:01:33.5]} 42...
Be7 {[%clk 0:01:50.5]} 43. f4 {[%clk 0:01:23.6]} 43... Rb3 {[%clk 0:01:35.4]}
44. Ke2 {[%clk 0:01:19.6]} 44... Ke6 {[%clk 0:01:30.4]} 45. Rd3 {[%clk
0:01:11.4]} 45... Rb1 {[%clk 0:01:17]} 46. f5+ {[%clk 0:00:59.3]} 46... Kd7
{[%clk 0:01:16]} 47. Bf2 {[%clk 0:00:56.1]} 47... Kc6 {[%clk 0:01:07.3]} 48. Rd1
{[%clk 0:00:49.3]} 48... Rbb4 {[%clk 0:01:04.3]} 49. Rdc1 {[%clk 0:00:49.1]}
49... Bd8 {[%clk 0:01:04.1]} 50. g3 {[%clk 0:00:44.3]} 50... hxg3 {[%clk
0:01:01.9]} 51. Bxg3 {[%clk 0:00:46]} 51... Rb3 {[%clk 0:00:56]} 52. Rc3 {[%clk
0:00:45.2]} 52... Ra2+ {[%clk 0:00:57]} 53. Kf3 {[%clk 0:00:44]} 53... Rbb2
{[%clk 0:00:51.5]} 54. Rd3 {[%clk 0:00:42.7]} 54... Be7 {[%clk 0:00:45.8]} 55.
Rcd1 {[%clk 0:00:43.8]} 55... Rc2 {[%clk 0:00:37]} 56. Bxd6 {[%clk 0:00:43.9]}
56... Rf2+ {[%clk 0:00:37.5]} 57. Kg4 {[%clk 0:00:40.4]} 57... Bd8 {[%clk
0:00:30.4]} 58. Bg3 {[%clk 0:00:37.5]} 1-0

[Event "*** Titled Tuesday Blitz"]
[Site "Chess.com"]
[Date "2019.02.05"]
[Round "2"]
[White "r31415"]
[Black "Winehouse83"]
[Result "1-0"]
[WhiteElo "2308"]
[BlackElo "2456"]
[TimeControl "180+2"]
[EndTime "13:23:44 PST"]
[Termination "r31415 won on time"]

1. e4 {[%clk 0:03:01.9]} 1... e5 {[%clk 0:02:56.4]} 2. Nf3 {[%clk 0:03:02.5]}
2... Nc6 {[%clk 0:02:52.9]} 3. Bc4 {[%clk 0:03:03.9]} 3... Bc5 {[%clk
0:02:51.1]} 4. c3 {[%clk 0:03:04.8]} 4... Nf6 {[%clk 0:02:48.6]} 5. d3 {[%clk
0:03:06.1]} 5... O-O {[%clk 0:02:48.2]} 6. Bb3 {[%clk 0:03:07.3]} 6... a5 {[%clk
0:02:48.2]} 7. O-O {[%clk 0:03:06.5]} 7... h6 {[%clk 0:02:47.8]} 8. Nxe5 {[%clk
0:02:50.9]} 8... Nxe5 {[%clk 0:02:43.5]} 9. d4 {[%clk 0:02:52]} 9... Nxe4 {[%clk
0:02:42.7]} 10. Re1 {[%clk 0:02:32.5]} 10... Qh4 {[%clk 0:02:11.9]} 11. g3
{[%clk 0:02:26.2]} 11... Nxf2 {[%clk 0:01:57.8]} 12. gxh4 {[%clk 0:01:44.8]}
12... Nxd1 {[%clk 0:01:57.2]} 13. Rxe5 {[%clk 0:01:28.3]} 13... d6 {[%clk
0:01:35.8]} 14. Re1 {[%clk 0:01:23.6]} 14... Nxb2 {[%clk 0:01:35]} 15. Bxb2
{[%clk 0:01:15.1]} 15... Bb6 {[%clk 0:01:35.6]} 16. Nd2 {[%clk 0:01:08.7]} 16...
a4 {[%clk 0:01:34.8]} 17. Bc2 {[%clk 0:01:02.6]} 17... a3 {[%clk 0:01:36.1]} 18.
Bc1 {[%clk 0:01:04.1]} 18... Ba5 {[%clk 0:01:37.2]} 19. Re3 {[%clk 0:01:03]}
19... Be6 {[%clk 0:01:37.9]} 20. Bb3 {[%clk 0:01:01.1]} 20... Rae8 {[%clk
0:01:37]} 21. Nf3 {[%clk 0:00:45.2]} 21... Bxb3 {[%clk 0:01:31.5]} 22. axb3
{[%clk 0:00:45.6]} 22... Rxe3 {[%clk 0:01:29.3]} 23. Bxe3 {[%clk 0:00:46.6]}
23... Bxc3 {[%clk 0:01:29.7]} 24. Rxa3 {[%clk 0:00:48]} 24... Re8 {[%clk
0:01:30.3]} 25. Kf2 {[%clk 0:00:49.5]} 25... Kf8 {[%clk 0:01:04.7]} 26. Ra7
{[%clk 0:00:39.1]} 26... Rb8 {[%clk 0:01:05.2]} 27. Bd2 {[%clk 0:00:40.4]} 27...
Bxd2 {[%clk 0:00:53.2]} 28. Nxd2 {[%clk 0:00:42]} 28... Ke7 {[%clk 0:00:54.8]}
29. d5 {[%clk 0:00:41.8]} 29... Kd7 {[%clk 0:00:55.4]} 30. Nc4 {[%clk
0:00:41.4]} 30... b5 {[%clk 0:00:53.9]} 31. Na5 {[%clk 0:00:40.9]} 31... Re8
{[%clk 0:00:54.6]} 32. Nc6 {[%clk 0:00:38.7]} 32... f5 {[%clk 0:00:47.6]} 33.
Rb7 {[%clk 0:00:37.5]} 33... g5 {[%clk 0:00:48.6]} 34. hxg5 {[%clk 0:00:38.2]}
34... hxg5 {[%clk 0:00:49.8]} 35. Rxb5 {[%clk 0:00:38.7]} 35... Rh8 {[%clk
0:00:45.6]} 36. Kg2 {[%clk 0:00:38.7]} 36... f4 {[%clk 0:00:42.5]} 37. Rb4
{[%clk 0:00:38.6]} 37... Re8 {[%clk 0:00:40.9]} 38. Kf2 {[%clk 0:00:37.8]} 38...
Rh8 {[%clk 0:00:37.7]} 39. Kf3 {[%clk 0:00:36.5]} 39... Rg8 {[%clk 0:00:32.4]}
40. Kg4 {[%clk 0:00:35.8]} 40... Rf8 {[%clk 0:00:33.8]} 41. Re4 {[%clk
0:00:16.4]} 41... f3 {[%clk 0:00:32.8]} 42. Re1 {[%clk 0:00:17]} 42... f2 {[%clk
0:00:31.6]} 43. Rf1 {[%clk 0:00:17.6]} 43... Kc8 {[%clk 0:00:26.9]} 44. Kg3
{[%clk 0:00:17.7]} 44... Kb7 {[%clk 0:00:27]} 45. Rxf2 {[%clk 0:00:18.1]} 45...
Ra8 {[%clk 0:00:27.8]} 46. Kg4 {[%clk 0:00:15.8]} 46... Ra3 {[%clk 0:00:26.6]}
47. Rf8 {[%clk 0:00:16.3]} 47... Rxb3 {[%clk 0:00:17.3]} 48. Na5+ {[%clk
0:00:11]} 1-0

[Event "*** Titled Tuesday Blitz"]
[Site "Chess.com"]
[Date "2019.02.05"]
[Round "2"]
[White "indfraeng"]
[Black "Synctel"]
[Result "1/2-1/2"]
[WhiteElo "1984"]
[BlackElo "1892"]
[TimeControl "180+2"]
[EndTime "13:23:44 PST"]
[Termination "Game drawn by repetition"]

1. d4 {[%clk 0:03:01.9]} 1... Nf6 {[%clk 0:02:56]} 2. c4 {[%clk 0:02:59]} 2...
e6 {[%clk 0:02:55.5]} 3. g3 {[%clk 0:02:55.6]} 3... Bb4+ {[%clk 0:02:52.2]} 4.
Bd2 {[%clk 0:02:55.7]} 4... Qe7 {[%clk 0:02:53.2]} 5. Nf3 {[%clk 0:02:55.8]}
5... Nc6 {[%clk 0:02:51.2]} 6. Nc3 {[%clk 0:02:55.2]} 6... O-O {[%clk
0:02:35.7]} 7. Bg2 {[%clk 0:02:53.7]} 7... d6 {[%clk 0:02:33]} 8. O-O {[%clk
0:02:52.1]} 8... Bxc3 {[%clk 0:02:19.6]} 9. Bxc3 {[%clk 0:02:50.9]} 9... e5
{[%clk 0:02:19.3]} 10. d5 {[%clk 0:02:50.3]} 10... Nb8 {[%clk 0:02:18.1]} 11.
Ng5 {[%clk 0:02:42.8]} 11... a5 {[%clk 0:02:11.5]} 12. Ne4 {[%clk 0:02:41.7]}
12... Nxe4 {[%clk 0:02:08.3]} 13. Bxe4 {[%clk 0:02:41.8]} 13... Bh3 {[%clk
0:02:09]} 14. Bg2 {[%clk 0:02:41.8]} 14... Bxg2 {[%clk 0:02:08.3]} 15. Kxg2
{[%clk 0:02:43.7]} 15... Nd7 {[%clk 0:02:01.2]} 16. f4 {[%clk 0:02:32.4]} 16...
Rfe8 {[%clk 0:01:44.1]} 17. e4 {[%clk 0:02:19.8]} 17... exf4 {[%clk 0:01:40]}
18. Rxf4 {[%clk 0:02:19.1]} 18... Ne5 {[%clk 0:01:37.3]} 19. Bxe5 {[%clk
0:02:15.6]} 19... Qxe5 {[%clk 0:01:36.7]} 20. Qd2 {[%clk 0:02:09.5]} 20... a4
{[%clk 0:01:31.3]} 21. Raf1 {[%clk 0:02:08.5]} 21... f6 {[%clk 0:01:31.3]} 22.
a3 {[%clk 0:02:05.2]} 22... Ra6 {[%clk 0:01:20.3]} 23. Qb4 {[%clk 0:01:50.9]}
23... Rb6 {[%clk 0:01:18.4]} 24. Qxa4 {[%clk 0:01:49]} 24... Rxb2+ {[%clk
0:01:16.1]} 25. Kh1 {[%clk 0:01:48.9]} 25... Rf8 {[%clk 0:00:32]} 26. Qd1 {[%clk
0:01:42.4]} 26... Ra8 {[%clk 0:00:30.2]} 27. Qg4 {[%clk 0:01:40.6]} 27... Ra2
{[%clk 0:00:22.6]} 28. Rxf6 {[%clk 0:01:33.5]} 28... Qb2 {[%clk 0:00:17.9]} 29.
R6f2 {[%clk 0:01:30]} 29... Qxf2 {[%clk 0:00:07.4]} 30. Rxf2 {[%clk 0:01:29.8]}
30... Rxf2 {[%clk 0:00:09.3]} 31. Kg1 {[%clk 0:01:28.5]} 31... Rf7 {[%clk
0:00:09]} 32. Qe6 {[%clk 0:01:28.2]} 32... h6 {[%clk 0:00:08]} 33. Kg2 {[%clk
0:01:24.9]} 33... b6 {[%clk 0:00:09.4]} 34. Kh3 {[%clk 0:01:23.4]} 34... Rxa3
{[%clk 0:00:09.3]} 35. Kg4 {[%clk 0:01:23.6]} 35... Rf3 {[%clk 0:00:09.2]} 36.
Qc8+ {[%clk 0:01:20.1]} 36... Kh7 {[%clk 0:00:09.7]} 37. Qe6 {[%clk 0:01:20.9]}
37... R3f6 {[%clk 0:00:10.7]} 38. Qd7 {[%clk 0:01:21.1]} 38... Rf2 {[%clk
0:00:12]} 39. h4 {[%clk 0:01:19]} 39... g6 {[%clk 0:00:10.8]} 40. Qe6 {[%clk
0:01:11]} 40... Kg7 {[%clk 0:00:11.3]} 41. h5 {[%clk 0:01:09.6]} 41... gxh5+
{[%clk 0:00:05]} 42. Kxh5 {[%clk 0:01:09.3]} 42... Rh2+ {[%clk 0:00:06.5]} 43.
Kg4 {[%clk 0:01:10.2]} 43... h5+ {[%clk 0:00:07.9]} 44. Kg5 {[%clk 0:01:10.4]}
44... Rg2 {[%clk 0:00:08.9]} 45. Qg6+ {[%clk 0:01:09.7]} 45... Kf8 {[%clk
0:00:10.4]} 46. Qh6+ {[%clk 0:01:10.5]} 46... Ke7 {[%clk 0:00:11.5]} 47. Qe6+
{[%clk 0:01:09.4]} 47... Kf8 {[%clk 0:00:11.9]} 48. Qc8+ {[%clk 0:01:04]} 48...
Kg7 {[%clk 0:00:13.1]} 49. Qh3 {[%clk 0:01:04.9]} 49... Rg1 {[%clk 0:00:07]} 50.
Kxh5 {[%clk 0:01:03.4]} 50... Kg8 {[%clk 0:00:05.3]} 51. Qc8+ {[%clk 0:01:02.4]}
51... Kg7 {[%clk 0:00:05.5]} 52. Kg4 {[%clk 0:01:02.5]} 52... Kh7 {[%clk
0:00:04.8]} 53. Qe6 {[%clk 0:00:59.3]} 53... Rg7+ {[%clk 0:00:05.8]} 54. Kf3
{[%clk 0:00:59.8]} 54... R1xg3+ {[%clk 0:00:07.6]} 55. Ke2 {[%clk 0:01:01.2]}
55... Rg2+ {[%clk 0:00:08.6]} 56. Kd1 {[%clk 0:01:00.1]} 56... Rh2 {[%clk
0:00:06.7]} 57. Qf5+ {[%clk 0:00:59.4]} 57... Kh8 {[%clk 0:00:06.8]} 58. Qf8+
{[%clk 0:00:59.6]} 58... Kh7 {[%clk 0:00:05.9]} 59. Qf5+ {[%clk 0:01:00.1]}
59... Kh8 {[%clk 0:00:05.1]} 60. Qf8+ {[%clk 0:00:56.6]} 60... Kh7 {[%clk
0:00:06.1]} 61. Qf5+ {[%clk 0:00:57]} 61... Kh8 {[%clk 0:00:07.2]} 62. Qf8+
{[%clk 0:00:57.4]} 62... Kh7 {[%clk 0:00:08.1]} 1/2-1/2